fUST/lending_fUST_20250910
["ID","MTS","AMOUNT","RATE_DAILY","PERIOD"]
[384485361,1757437839929,-336.73026645,0.00013698,2]
[384485362,1757437839939,-795.75,0.00013698,2]
[384485363,1757437839948,-480.0,0.00013698,2]
[384485364,1757437839959,-480.0,0.00013698,2]
[384485366,1757437839968,-2536.03,0.00013698,2]
[384485367,1757437839978,-480.0,0.00013698,2]
[384485368,1757437839988,-612.21,0.00013698,2]
[384485369,1757437839998,-480.0,0.00013698,2]
[384485370,1757437840007,-2259.64,0.00013698,2]
[384485372,1757437840017,-494.4,0.00013698,2]
[384485373,1757437840028,-480.0,0.00013698,2]
[384485374,1757437840038,-480.0,0.00013698,2]
[384485375,1757437840048,-673.83,0.00013698,2]
[384485376,1757437840059,-825.72,0.00013698,2]
[384485377,1757437840069,-480.0,0.00013698,2]
[384485378,1757437840079,-543.4,0.00013698,2]
[384485379,1757437840089,-486.94,0.00013698,2]
[384485380,1757437840099,-480.0,0.00013698,2]
[384485381,1757437840109,-480.0,0.00013698,2]
[384485382,1757437840120,-480.0,0.00013698,2]
[384485383,1757437840131,-480.0,0.00013698,2]
[384485384,1757437840140,-1561.26,0.00013698,2]
[384485385,1757437840150,-480.0,0.00013698,2]
[384485386,1757437840159,-756.11,0.00013698,2]
[384485387,1757437840170,-480.0,0.00013698,2]
[384485388,1757437840179,-480.0,0.00013698,2]
[384485389,1757437840189,-480.0,0.00013698,2]
[384485391,1757437840199,-2839.11,0.00013698,2]
[384485393,1757437840208,-480.0,0.00013698,2]
[384485395,1757437840217,-643.65,0.00013698,2]
[384485396,1757437840227,-480.0,0.00013698,2]
[384485397,1757437840236,-480.0,0.00013698,2]
[384485398,1757437840246,-940.96,0.00013698,2]
[384485399,1757437840256,-480.0,0.00013698,2]
[384485400,1757437840265,-923.18,0.00013698,2]
[384485401,1757437840275,-480.0,0.00013698,2]
[384485402,1757437840284,-480.0,0.00013698,2]
[384485403,1757437840294,-480.0,0.00013698,2]
[384485404,1757437840304,-480.0,0.00013698,2]
[384485405,1757437840313,-487.47036349,0.00013698,2]
[384485406,1757437840323,-480.0,0.00013698,2]
[384485407,1757437840333,-1895.63,0.00013698,2]
[384485408,1757437840343,-480.0,0.00013698,2]
[384485409,1757437840352,-480.0,0.00013698,2]
[384485410,1757437840364,-480.0,0.00013698,2]
[384485411,1757437840375,-480.0,0.00013698,2]
[384485412,1757437840385,-585.75,0.00013698,2]
[384485413,1757437840395,-480.0,0.00013698,2]
[384485414,1757437840404,-480.0,0.00013698,2]
[384485415,1757437840414,-480.0,0.00013698,2]
[384485416,1757437840423,-1719.16,0.00013698,2]
[384485417,1757437840433,-480.0,0.00013698,2]
[384485418,1757437840443,-480.0,0.00013698,2]
[384485419,1757437840452,-480.0,0.00013698,2]
[384485420,1757437840462,-1082.91,0.00013698,2]
[384485421,1757437840471,-808.46,0.00013698,2]
[384485422,1757437840481,-480.0,0.00013698,2]
[384485423,1757437840491,-480.0,0.00013698,2]
[384485424,1757437840501,-480.0,0.00013698,2]
[384485426,1757437840511,-480.0,0.00013698,2]
[384485427,1757437840521,-368.00744578,0.00013698,2]
[384485428,1757437840531,-480.0,0.00013698,2]
[384485430,1757437840541,-8476.54,0.00013698,2]
[384485432,1757437840550,-948.37,0.00013698,2]
[384485434,1757437840561,-480.0,0.00013698,2]
[384485435,1757437840571,-480.0,0.00013698,2]
[384485437,1757437840581,-594.2,0.00013698,2]
[384485439,1757437840591,-480.0,0.00013698,2]
[384485441,1757437840600,-814.42,0.00013698,2]
[384485443,1757437840611,-736.76,0.00013698,2]
[384485445,1757437840621,-480.0,0.00013698,2]
[384485447,1757437840631,-906.25,0.00013698,2]
[384485449,1757437840641,-480.0,0.00013698,2]
[384485451,1757437840651,-480.0,0.00013698,2]
[384485453,1757437840661,-1124.26,0.00013698,2]
[384485455,1757437840671,-489.65,0.00013698,2]
[384485457,1757437840680,-480.0,0.00013698,2]
[384485459,1757437840689,-480.0,0.00013698,2]
[384485461,1757437840699,-480.0,0.00013698,2]
[384485463,1757437840708,-2489.89,0.00013698,2]
[384485465,1757437840718,-480.0,0.00013698,2]
[384485482,1757437840871,-480.0,0.00013698,2]
[384485484,1757437840882,-519.67,0.00013698,2]
[384485486,1757437840891,-1112.78,0.00013698,2]
[384485488,1757437840901,-480.0,0.00013698,2]
[384485490,1757437840911,-480.0,0.00013698,2]
[384485492,1757437840921,-1887.27,0.00013698,2]
[384485494,1757437840930,-480.0,0.00013698,2]
[384485496,1757437840939,-682.99,0.00013698,2]
[384485498,1757437840949,-572.22,0.00013698,2]
[384485500,1757437840958,-480.0,0.00013698,2]
[384485502,1757437840967,-480.0,0.00013698,2]
[384485504,1757437840977,-1461.35,0.00013698,2]
[384485506,1757437840987,-1137.41,0.00013698,2]
[384485508,1757437840996,-3481.5,0.00013698,2]
[384485509,1757437841006,-480.0,0.00013698,2]
[384485511,1757437841016,-888.11,0.00013698,2]
[384485513,1757437841026,-480.0,0.00013698,2]
[384485515,1757437841036,-480.0,0.00013698,2]
[384485517,1757437841046,-500.0,0.00013698,2]
[384485520,1757437841056,-500.0,0.00013698,2]
[384485521,1757437841065,-500.0,0.00013698,2]
[384485523,1757437841074,-581.96,0.00013698,2]
[384485525,1757437841084,-500.0,0.00013698,2]
[384485527,1757437841093,-500.0,0.00013698,2]
[384485529,1757437841103,-423.22,0.00013698,2]
[384485531,1757437841113,-480.0,0.00013698,2]
[384485533,1757437841125,-528.08,0.00013698,2]
[384485535,1757437841134,-941.33,0.00013698,2]
[384485537,1757437841143,-540.1,0.00013698,2]
[384485539,1757437841153,-4546.11,0.00013698,2]
[384485541,1757437841162,-1289.09,0.00013698,2]
[384485543,1757437841173,-480.0,0.00013698,2]
[384485544,1757437841183,-759.6,0.00013698,2]
[384485546,1757437841192,-4926.1,0.00013698,2]
[384485548,1757437841202,-480.0,0.00013698,2]
[384485550,1757437841212,-3979.18,0.00013698,2]
[384485552,1757437841221,-480.0,0.00013698,2]
[384485554,1757437841231,-1775.66,0.00013698,2]
[384485555,1757437841241,-480.0,0.00013698,2]
[384485557,1757437841256,-480.0,0.00013698,2]
[384485559,1757437841266,-480.0,0.00013698,2]
[384485561,1757437841275,-480.0,0.00013698,2]
[384485562,1757437841285,-480.0,0.00013698,2]
[384485564,1757437841296,-934.26,0.00013698,2]
[384485566,1757437841306,-480.0,0.00013698,2]
[384485568,1757437841315,-25457.63,0.00013698,2]
[384485570,1757437841325,-480.0,0.00013698,2]
[384485572,1757437841335,-480.0,0.00013698,2]
[384485574,1757437841344,-480.0,0.00013698,2]
[384485575,1757437841354,-723.46,0.00013698,2]
[384485576,1757437841363,-500.0,0.00013698,2]
[384485577,1757437841372,-283.419958,0.00013699,2]
[384485578,1757437841382,-1054.710089,0.00013699,2]
[384485579,1757437841391,-160.0,0.00013769,2]
[384485580,1757437841401,-417.15472785,0.00013769,2]
[384485581,1757437841410,-217.65034598,0.00013769,2]
[384485582,1757437841419,-203.28455737,0.00013769,2]
[384485583,1757437841428,-846.80158213,0.00013769,2]
[384485584,1757437841443,-233.05759179,0.00013769,2]
[384485585,1757437841455,-160.0,0.00013769,2]
[384485586,1757437841465,-530.79566296,0.00013769,2]
[384485587,1757437841476,-160.0,0.00013769,2]
[384485588,1757437841486,-168.0,0.00013788,2]
[384485589,1757437841496,-976.0,0.00013864,2]
[384485590,1757437841505,-2154.0,0.00013864,2]
[384485591,1757437841516,-634.0,0.00013864,2]
[384485593,1757437841528,-3623.25884064,0.00013872,2]
[384485594,1757437841539,-150.049,0.00013929,2]
[384485596,1757437841549,-150.055,0.00013929,2]
[384485598,1757437841559,-300.0,0.00013961,2]
[384485600,1757437841569,-300.0,0.00013961,2]
[384485602,1757437841578,-300.0,0.00013961,2]
[384485604,1757437841587,-300.0,0.00013961,2]
[384485606,1757437841597,-300.0,0.00013961,2]
[384485607,1757437841606,-300.0,0.00013961,2]
[384485608,1757437841616,-300.0,0.00013961,2]
[384485609,1757437841627,-300.0,0.00013961,2]
[384485610,1757437841636,-300.0,0.00013961,2]
[384485611,1757437841647,-300.0,0.00013961,2]
[384485612,1757437841656,-300.0,0.00013961,2]
[384485613,1757437841666,-300.0,0.00013961,2]
[384485614,1757437841675,-300.0,0.00013961,2]
[384485615,1757437841685,-300.0,0.00013961,2]
[384485616,1757437841695,-300.0,0.00013961,2]
[384485617,1757437841704,-600.0,0.00013961,2]
[384485618,1757437841714,-1056.71857488,0.00013969,2]
[384485619,1757437841723,-318.714,0.00013971,2]
[384485620,1757437841733,-303.76515095,0.00013971,2]
[384485621,1757437841743,-4374.98066016,0.00013972,2]
[384485622,1757437841756,-271.60309628,0.00013972,2]
[384485623,1757437841767,-151.0,0.00013972,2]
[384485624,1757437841777,-151.0,0.00013972,2]
[384485625,1757437841786,-151.0,0.00013972,2]
[384485626,1757437841796,-480.0,0.00013972,2]
[384485627,1757437841805,-480.0,0.00013972,2]
[384485628,1757437841816,-151.981614,0.00013972,2]
[384485629,1757437841826,-480.0,0.00013972,2]
[384485630,1757437841836,-480.0,0.00013972,2]
[384485631,1757437841846,-480.0,0.00013972,2]
[384485632,1757437841856,-480.0,0.00013972,2]
[384485633,1757437841865,-618.58,0.00013972,2]
[384485634,1757437841875,-480.0,0.00013972,2]
[384485635,1757437841885,-480.0,0.00013972,2]
[384485636,1757437841895,-480.0,0.00013972,2]
[384485637,1757437841906,-504.43,0.00013972,2]
[384485638,1757437841916,-157.0,0.00013972,2]
[384485639,1757437841926,-480.0,0.00013972,2]
[384485640,1757437841935,-151.0,0.00013972,2]
[384485641,1757437841945,-770.22,0.00013972,2]
[384485642,1757437841954,-151.0,0.00013972,2]
[384485643,1757437841964,-151.0,0.00013972,2]
[384485644,1757437841973,-778.64,0.00013972,2]
[384485645,1757437841983,-154.027374,0.00013972,2]
[384485646,1757437841992,-557.1,0.00013972,2]
[384485647,1757437842001,-360.04609869,0.00013972,2]
[384485648,1757437842011,-1340.32,0.00013972,2]
[384485649,1757437842021,-151.0,0.00013972,2]
[384485650,1757437842031,-151.0,0.00013972,2]
[384485651,1757437842040,-480.0,0.00013972,2]
[384485652,1757437842050,-151.0,0.00013972,2]
[384485653,1757437842059,-502.13,0.00013972,2]
[384485654,1757437842068,-480.0,0.00013972,2]
[384485655,1757437842077,-151.0,0.00013972,2]
[384485656,1757437842088,-151.0,0.00013972,2]
[384485657,1757437842098,-746.49,0.00013972,2]
[384485658,1757437842108,-480.0,0.00013972,2]
[384485659,1757437842117,-480.0,0.00013972,2]
[384485660,1757437842128,-480.0,0.00013972,2]
[384485661,1757437842137,-633.06,0.00013972,2]
[384485662,1757437842146,-151.0,0.00013972,2]
[384485663,1757437842155,-480.0,0.00013972,2]
[384485664,1757437842165,-480.0,0.00013972,2]
[384485665,1757437842175,-151.0,0.00013972,2]
[384485666,1757437842185,-151.0,0.00013972,2]
[384485667,1757437842194,-480.0,0.00013972,2]
[384485668,1757437842204,-645.44,0.00013972,2]
[384485669,1757437842213,-480.0,0.00013972,2]
[384485670,1757437842222,-1742.64,0.00013972,2]
[384485671,1757437842231,-480.0,0.00013972,2]
[384485672,1757437842240,-815.99,0.00013972,2]
[384485673,1757437842249,-480.0,0.00013972,2]
[384485674,1757437842260,-480.0,0.00013972,2]
[384485675,1757437842270,-480.0,0.00013972,2]
[384485676,1757437842279,-159.064248,0.00013972,2]
[384485677,1757437842288,-354.86525612,0.00013972,2]
[384485678,1757437842298,-151.0,0.00013972,2]
[384485679,1757437842307,-480.0,0.00013972,2]
[384485680,1757437842317,-513.30262906,0.00013972,2]
[384485681,1757437842326,-480.0,0.00013972,2]
[384485682,1757437842336,-480.0,0.00013972,2]
[384485683,1757437842345,-480.0,0.00013972,2]
[384485684,1757437842355,-669.3,0.00013972,2]
[384485685,1757437842365,-662.68,0.00013972,2]
[384485686,1757437842376,-480.0,0.00013972,2]
[384485687,1757437842386,-480.0,0.00013972,2]
[384485688,1757437842396,-480.0,0.00013972,2]
[384485689,1757437842406,-480.0,0.00013972,2]
[384485690,1757437842415,-1719.61,0.00013972,2]
[384485691,1757437842428,-480.0,0.00013972,2]
[384485692,1757437842439,-795.75,0.00013972,2]
[384485693,1757437842448,-2536.03,0.00013972,2]
[384485694,1757437842458,-612.21,0.00013972,2]
[384485695,1757437842467,-480.0,0.00013972,2]
[384485696,1757437842477,-2259.64,0.00013972,2]
[384485697,1757437842486,-480.0,0.00013972,2]
[384485698,1757437842496,-151.0,0.00013972,2]
[384485699,1757437842505,-673.83,0.00013972,2]
[384485700,1757437842515,-825.72,0.00013972,2]
[384485701,1757437842524,-480.0,0.00013972,2]
[384485702,1757437842533,-260.140899,0.00013972,2]
[384485703,1757437842542,-543.4,0.00013972,2]
[384485704,1757437842551,-157.0,0.00013972,2]
[384485705,1757437842560,-186.0,0.00013972,2]
[384485706,1757437842570,-486.94,0.00013972,2]
[384485707,1757437842579,-480.0,0.00013972,2]
[384485708,1757437842588,-1561.26,0.00013972,2]
[384485709,1757437842597,-756.11,0.00013972,2]
[384485710,1757437842607,-151.0,0.00013972,2]
[384485711,1757437842616,-480.0,0.00013972,2]
[384485712,1757437842626,-2839.11,0.00013972,2]
[384485713,1757437842635,-480.0,0.00013972,2]
[384485714,1757437842644,-643.65,0.00013972,2]
[384485715,1757437842654,-940.96,0.00013972,2]
[384485716,1757437842664,-923.18,0.00013972,2]
[384485717,1757437842673,-480.0,0.00013972,2]
[384485718,1757437842682,-480.0,0.00013972,2]
[384485719,1757437842691,-480.0,0.00013972,2]
[384485720,1757437842701,-1895.63,0.00013972,2]
[384485721,1757437842711,-480.0,0.00013972,2]
[384485722,1757437842720,-151.0,0.00013972,2]
[384485723,1757437842730,-480.0,0.00013972,2]
[384485724,1757437842740,-480.0,0.00013972,2]
[384485725,1757437842752,-585.75,0.00013972,2]
[384485726,1757437842761,-480.0,0.00013972,2]
[384485727,1757437842771,-410.9844104,0.00013972,2]
[384485728,1757437842780,-151.0,0.00013972,2]
[384485729,1757437842790,-1719.16,0.00013972,2]
[384485730,1757437842799,-480.0,0.00013972,2]
[384485731,1757437842808,-480.0,0.00013972,2]
[384485732,1757437842817,-480.0,0.00013972,2]
[384485733,1757437842828,-1082.91,0.00013972,2]
[384485734,1757437842837,-808.46,0.00013972,2]
[384485735,1757437842846,-480.0,0.00013972,2]
[384485736,1757437842855,-8476.54,0.00013972,2]
[384485737,1757437842864,-948.37,0.00013972,2]
[384485738,1757437842874,-480.0,0.00013972,2]
[384485739,1757437842883,-480.0,0.00013972,2]
[384485740,1757437842892,-594.2,0.00013972,2]
[384485741,1757437842903,-814.42,0.00013972,2]
[384485742,1757437842912,-736.76,0.00013972,2]
[384485743,1757437842921,-906.25,0.00013972,2]
[384485745,1757437842930,-480.0,0.00013972,2]
[384485746,1757437842939,-480.0,0.00013972,2]
[384485747,1757437842949,-1124.26,0.00013972,2]
[384485748,1757437842959,-489.65,0.00013972,2]
[384485749,1757437842968,-480.0,0.00013972,2]
[384485750,1757437842977,-480.0,0.00013972,2]
[384485751,1757437842986,-2489.89,0.00013972,2]
[384485752,1757437842996,-480.0,0.00013972,2]
[384485753,1757437843005,-519.67,0.00013972,2]
[384485754,1757437843014,-500.0,0.00013972,2]
[384485755,1757437843024,-1112.78,0.00013972,2]
[384485756,1757437843033,-204.92868896,0.00013972,2]
[384485757,1757437843043,-1887.27,0.00013972,2]
[384485758,1757437843052,-682.99,0.00013972,2]
[384485759,1757437843062,-572.22,0.00013972,2]
[384485760,1757437843071,-480.0,0.00013972,2]
[384485761,1757437843080,-1461.35,0.00013972,2]
[384485762,1757437843090,-1137.41,0.00013972,2]
[384485763,1757437843100,-3481.5,0.00013972,2]
[384485764,1757437843109,-888.11,0.00013972,2]
[384485766,1757437843118,-480.0,0.00013972,2]
[384485768,1757437843127,-581.96,0.00013972,2]
[384485769,1757437843136,-528.08,0.00013972,2]
[384485771,1757437843145,-941.33,0.00013972,2]
[384485773,1757437843156,-540.1,0.00013972,2]
[384485774,1757437843165,-4546.11,0.00013972,2]
[384485775,1757437843174,-1289.09,0.00013972,2]
[384485776,1757437843183,-438.16346282,0.00013972,2]
[384485777,1757437843192,-759.6,0.00013972,2]
[384485778,1757437843201,-4926.1,0.00013972,2]
[384485779,1757437843210,-480.0,0.00013972,2]
[384485780,1757437843220,-3979.18,0.00013972,2]
[384485781,1757437843229,-244.0,0.00013972,2]
[384485782,1757437843238,-500.0,0.00013972,2]
[384485783,1757437843248,-639.0,0.00013972,2]
[384485784,1757437843257,-480.0,0.00013972,2]
[384485785,1757437843268,-1775.66,0.00013972,2]
[384485786,1757437843277,-480.0,0.00013972,2]
[384485787,1757437843286,-290.7,0.00013972,2]
[384485788,1757437843296,-480.0,0.00013972,2]
[384485789,1757437843305,-934.26,0.00013972,2]
[384485790,1757437843315,-480.0,0.00013972,2]
[384485791,1757437843326,-25457.63,0.00013972,2]
[384485792,1757437843335,-151.0,0.00013972,2]
[384485793,1757437843344,-480.0,0.00013972,2]
[384485794,1757437843353,-151.0,0.00013972,2]
[384485795,1757437843363,-480.0,0.00013972,2]
[384485796,1757437843373,-480.0,0.00013972,2]
[384485797,1757437843382,-723.46,0.00013972,2]
[384485798,1757437843391,-500.0,0.00013972,2]
[384485800,1757437843400,-500.0,0.00013973,2]
[384485802,1757437843409,-266.94472714,0.00013973,2]
[384485804,1757437843418,-500.0,0.00013973,2]
[384485806,1757437843428,-502.61682343,0.00013973,2]
[384485808,1757437843437,-316.29247482,0.00013973,2]
[384485810,1757437843447,-500.0,0.00013973,2]
[384485812,1757437843456,-500.0,0.00013973,2]
[384485814,1757437843465,-501.49623136,0.00013973,2]
[384485815,1757437843475,-243.75027178,0.00013973,2]
[384485816,1757437843483,-500.0,0.00013973,2]
[384485817,1757437843493,-500.0,0.00013973,2]
[384485818,1757437843502,-500.0,0.00013973,2]
[384485819,1757437843511,-500.0,0.00013973,2]
[384485820,1757437843520,-574.18810144,0.00013973,2]
[384485821,1757437843530,-504.10830129,0.00013973,2]
[384485822,1757437843539,-239.13686999,0.00013973,2]
[384485823,1757437843548,-500.0,0.00013973,2]
[384485824,1757437843558,-500.0,0.00013973,2]
[384485825,1757437843567,-500.0,0.00013973,2]
[384485826,1757437843576,-500.0,0.00013973,2]
[384485827,1757437843585,-500.0,0.00013973,2]
[384485828,1757437843595,-505.0525479,0.00013973,2]
[384485829,1757437843604,-151.0,0.00013973,2]
[384485830,1757437843614,-169.58336765,0.00013988,2]
[384485831,1757437843623,-100000.0,0.0001399,2]
[384485832,1757437843632,-151.0,0.0001399,2]
[384485833,1757437843641,-151.0,0.0001399,2]
[384485834,1757437843650,-151.0,0.0001399,2]
[384485835,1757437843659,-151.0,0.0001399,2]
[384485836,1757437843670,-151.0,0.0001399,2]
[384485837,1757437843679,-151.0,0.0001399,2]
[384485838,1757437843688,-151.0,0.0001399,2]
[384485839,1757437843697,-156.967435,0.0001399,2]
[384485840,1757437843707,-151.0,0.0001399,2]
[384485841,1757437843717,-151.0,0.0001399,2]
[384485842,1757437843726,-162.310329,0.0001399,2]
[384485843,1757437843736,-151.0,0.0001399,2]
[384485844,1757437843757,-151.0,0.0001399,2]
[384485845,1757437843766,-151.0,0.0001399,2]
[384485847,1757437843776,-168.0,0.00013993,2]
[384485848,1757437843785,-398.0,0.00013998,2]
[384485849,1757437843794,-151.0,0.00014,2]
[384485850,1757437843803,-590.6710272,0.00014,2]
[384485851,1757437843813,-656.6692083,0.00014,2]
[384485852,1757437843824,-323.1991578,0.00014,2]
[384485853,1757437843833,-151.0,0.000141,2]
[384485854,1757437843843,-1000.0,0.00014136,2]
[384485855,1757437843852,-1000.0,0.00014136,2]
[384485856,1757437843862,-1000.0,0.00014136,2]
[384485857,1757437843871,-360.0,0.00014136,2]
[384485858,1757437843881,-151.0,0.00014136,2]
[384485859,1757437843891,-424.0,0.00014199,2]
[384485860,1757437843900,-277.0,0.000142,2]
[384485861,1757437843910,-151.0,0.000142,2]
[384485862,1757437843920,-168.0,0.00014201,2]
[384485863,1757437843929,-485.04805454,0.00014221,2]
[384485864,1757437843939,-398.0,0.00014237,2]
[384485865,1757437843948,-65599.07006635,0.0001424,2]
[384485866,1757437844454,-11237.93,0.0001424,2]
[384485867,1757437844466,-2159.38125916,0.0001424,2]
[384485883,1757437846551,-735.04964314,0.0001424,2]
[384485900,1757437846710,-1034.26942469,0.0001424,2]
[384485902,1757437846720,-157.0,0.00014246,2]
[384485904,1757437846729,-500.0,0.00014246,2]
[384485906,1757437846738,-500.0,0.00014246,2]
[384485908,1757437846751,-639.0,0.00014246,2]
[384485910,1757437846760,-480.0,0.00014246,2]
[384485912,1757437846769,-480.0,0.00014246,2]
[384485914,1757437846778,-480.0,0.00014246,2]
[384485916,1757437846787,-29.73057531,0.00014246,2]
[384485918,1757437846800,-450.26942469,0.00014246,2]
[384485920,1757437846810,-42.96022686,0.00014246,2]
[384485984,1757437863002,666.0,0.00013184,2]
[384485986,1757437889022,1000.0,0.00018591,20]
[384486026,1757438174400,25852.93421587,0.000176,27]
[384486027,1757438174428,148497.43,0.000176,27]
[384486028,1757438178523,191.776844,0.00013285,2]
[384486046,1757438263097,2763.49672328,0.00012698,2]
[384486047,1757438263124,6033.04886972,0.00012698,2]
[384486062,1757438545081,618.44223898,0.00012645,2]
[384486063,1757438545110,9381.55776102,0.00012645,2]
[384486066,1757438593560,193.14067,0.00027397,120]
[384486067,1757438633393,1000.0,0.00012645,2]
[384486088,1757438848785,300.0,0.00013153,2]
[384486104,1757438914395,-300.0,0.00013286,2]
[384486105,1757438914422,-1399.2223941,0.00013557,2]
[384486106,1757438914465,-6601.5652118,0.00013557,2]
[384486107,1757438914552,-300.0,0.00013593,2]
[384486108,1757438914592,-9400.01,0.00013594,2]
[384486109,1757438914704,-3537.98213512,0.00013594,2]
[384486110,1757438914738,-2924.04572976,0.00013598,2]
[384486111,1757438914817,-699.21311088,0.00013598,2]
[384486112,1757438914845,-397.68559553,0.00013689,2]
[384486113,1757438914874,-197.76721556,0.00013689,2]
[384486114,1757438915046,-500.0,0.0001369,2]
[384486115,1757438915075,-500.0,0.0001369,2]
[384486116,1757438915107,-356.50180014,0.0001369,2]
[384486117,1757438915134,-500.0,0.0001369,2]
[384486118,1757438915164,-1153.96260763,0.0001369,2]
[384486119,1757438915197,-500.0,0.0001369,2]
[384486120,1757438915302,-500.0,0.0001369,2]
[384486121,1757438915332,-500.0,0.0001369,2]
[384486122,1757438915366,-500.0,0.0001369,2]
[384486123,1757438915398,-500.0,0.0001369,2]
[384486124,1757438915427,-500.0,0.0001369,2]
[384486125,1757438915458,-1153.96260763,0.0001369,2]
[384486126,1757438915490,-500.0,0.0001369,2]
[384486127,1757438915527,-467.17053675,0.0001369,2]
[384486128,1757438915555,-257.74371124,0.0001369,2]
[384486129,1757438915594,-242.25628876,0.0001369,2]
[384486130,1757438915622,-553.69664648,0.0001369,2]
[384486131,1757438915656,-615.97404102,0.0001369,2]
[384486132,1757438915684,-216.47823999,0.0001369,2]
[384486133,1757438915714,-1153.96260763,0.0001369,2]
[384486134,1757438915743,-500.0,0.0001369,2]
[384486135,1757438915777,-500.0,0.0001369,2]
[384486136,1757438915809,-1153.96260763,0.0001369,2]
[384486137,1757438915950,-500.0,0.0001369,2]
[384486138,1757438915978,-500.0,0.0001369,2]
[384486139,1757438916009,-500.0,0.0001369,2]
[384486140,1757438916043,-500.0,0.0001369,2]
[384486141,1757438916078,-500.0,0.0001369,2]
[384486142,1757438916110,-1153.96260763,0.0001369,2]
[384486143,1757438916138,-500.0,0.0001369,2]
[384486144,1757438916168,-500.0,0.0001369,2]
[384486145,1757438916266,-1153.96260763,0.0001369,2]
[384486146,1757438916298,-500.0,0.0001369,2]
[384486147,1757438916325,-609.7003483,0.0001369,2]
[384486148,1757438916354,-500.0,0.0001369,2]
[384486149,1757438916383,-1153.96260763,0.0001369,2]
[384486150,1757438916410,-500.0,0.0001369,2]
[384486151,1757438916438,-500.0,0.0001369,2]
[384486152,1757438916586,-1153.96260763,0.0001369,2]
[384486153,1757438916618,-500.0,0.0001369,2]
[384486154,1757438916648,-500.0,0.0001369,2]
[384486155,1757438916677,-500.0,0.0001369,2]
[384486156,1757438916707,-1153.96260763,0.0001369,2]
[384486157,1757438916739,-500.0,0.0001369,2]
[384486158,1757438916769,-248.29073459,0.0001369,2]
[384486159,1757438916799,-387.5781003,0.0001369,2]
[384486160,1757438916934,-112.4218997,0.0001369,2]
[384486161,1757438916966,-500.0,0.0001369,2]
[384486162,1757438916996,-1153.96260763,0.0001369,2]
[384486163,1757438917024,-500.0,0.0001369,2]
[384486164,1757438917054,-500.0,0.0001369,2]
[384486165,1757438917086,-500.0,0.0001369,2]
[384486166,1757438917122,-1153.96260763,0.0001369,2]
[384486167,1757438917153,-500.0,0.0001369,2]
[384486170,1757438918330,-74.65771595,0.0001369,2]
[384486171,1757438918344,-105.34228405,0.0001369,2]
[384486172,1757438918353,-1048.62032358,0.0001369,2]
[384486173,1757438918367,-105.34228405,0.0001369,2]
[384486174,1757438918377,-394.65771595,0.0001369,2]
[384486175,1757438918391,-159.31577008,0.0001369,2]
[384486187,1757438933218,352.54,0.00012329,2]
[384486189,1757438943695,293.78,0.00012329,2]
[384486191,1757438954115,244.82,0.00012329,2]
[384486192,1757438964835,204.01,0.00012329,2]